{"text_format":"2","workbook":"xlsx","n_sheets":2,"sheets":["Total","5차 통합테스트"],"not_rendered":{"charts":0,"images":0,"macros":0,"external_links":0,"defined_names":0,"comments":0,"pivot_tables":0},"unopened":[],"bounds":{"document_bytes":16777216,"sheet_cells":100000,"run_cost":"one","rows_first":2000,"rows_last":500,"rows_between":2000,"halvings":0,"cell_chars":16384,"cell_head_chars":4096},"cells_cut":0,"cells_raw":0,"read":"whole","date_system":"1900"}

{"sheet":"Total","index":0,"n_rows":12,"n_cols":20,"rows_kept":12,"cut":false,"hidden":false,"merged":[]}
[]
[null,"통합 테스트 진행 현황"]
[]
[null,"구분","테스트 항목","성공","실패","보류","개선",null,null,"실패조치","조치율",null,"실패보류","보류조치율",null,"개선조치","조치율",null,"개선보류","보류조치율"]
[null,"Total",{"$f":"SUM(C6:C12)","v":249},{"$f":"SUM(D6:D12)","v":213},14,3,47,null,null,{"$f":"COUNTIFS('5차 통합테스트'!G:G,\"실패\",'5차 통합테스트'!K:K,\"완료\")","v":10},{"$f":"J5/E5","v":0.7142857142857143},null,{"$f":"COUNTIFS('5차 통합테스트'!G:G,\"실패\",'5차 통합테스트'!K:K,\"보류\")","v":0},{"$f":"M5/E5","v":0},null,{"$f":"COUNTIFS('5차 통합테스트'!G:G,\"개선\",'5차 통합테스트'!K:K,\"완료\")","v":14},{"$f":"P5/G5","v":0.2978723404255319},null,{"$f":"COUNTIFS('5차 통합테스트'!G:G,\"개선\",'5차 통합테스트'!K:K,\"보류\")","v":0},{"$f":"S5/G5","v":0}]
[null,"상품입고/등록/출고",{"$f":"COUNTA('5차 통합테스트'!C4:C79)","v":64},{"$f":"COUNTIF('5차 통합테스트'!G4:G79,\"성공\")","v":55},{"$f":"COUNTIF('5차 통합테스트'!G4:G79,\"실패\")","v":4},{"$f":"COUNTIF('5차 통합테스트'!G4:G79,\"보류\")","v":0},{"$f":"COUNTIF('5차 통합테스트'!G4:G79,\"개선\")","v":15}]
[null,"회원 관련",{"$f":"COUNTA('5차 통합테스트'!C81:C100)","v":16},{"$f":"COUNTIF('5차 통합테스트'!G81:G100,\"성공\")","v":11},{"$f":"COUNTIF('5차 통합테스트'!G81:G100,\"실패\")","v":1},{"$f":"COUNTIF('5차 통합테스트'!G81:G100,\"보류\")","v":0},{"$f":"COUNTIF('5차 통합테스트'!G81:G100,\"개선\")","v":6}]
[null,"제휴몰 - 샵링커(상품 및 재고 연동)",{"$f":"COUNTA('5차 통합테스트'!C102:C109)","v":6},{"$f":"COUNTIF('5차 통합테스트'!G102:G109,\"성공\")","v":6},{"$f":"COUNTIF('5차 통합테스트'!G102:G109,\"실패\")","v":0},{"$f":"COUNTIF('5차 통합테스트'!G102:G109,\"보류\")","v":0},{"$f":"COUNTIF('5차 통합테스트'!G102:G109,\"개선\")","v":0}]
[null,"전시 및 프로모션 관리",{"$f":"COUNTA('5차 통합테스트'!C111:C184)","v":64},{"$f":"COUNTIF('5차 통합테스트'!G111:G184,\"성공\")","v":57},{"$f":"COUNTIF('5차 통합테스트'!G111:G184,\"실패\")","v":5},{"$f":"COUNTIF('5차 통합테스트'!G111:G184,\"보류\")","v":0},{"$f":"COUNTIF('5차 통합테스트'!G111:G184,\"개선\")","v":10}]
[null,"주문",{"$f":"COUNTA('5차 통합테스트'!C186:C234)","v":47},{"$f":"COUNTIF('5차 통합테스트'!G186:G234,\"성공\")","v":40},{"$f":"COUNTIF('5차 통합테스트'!G186:G234,\"실패\")","v":1},{"$f":"COUNTIF('5차 통합테스트'!G186:G234,\"보류\")","v":3},{"$f":"COUNTIF('5차 통합테스트'!G186:G234,\"개선\")","v":4}]
[null,"출고 및 클레임",{"$f":"COUNTA('5차 통합테스트'!C236:C279)","v":36},{"$f":"COUNTIF('5차 통합테스트'!G236:G279,\"성공\")","v":29},{"$f":"COUNTIF('5차 통합테스트'!G236:G279,\"실패\")","v":3},{"$f":"COUNTIF('5차 통합테스트'!G236:G279,\"보류\")","v":0},{"$f":"COUNTIF('5차 통합테스트'!G236:G279,\"개선\")","v":9}]
[null,"제휴몰 - 샵링커(상품 및 재고 연동)",{"$f":"COUNTA('5차 통합테스트'!C281:C299)","v":16},{"$f":"COUNTIF('5차 통합테스트'!G281:G299,\"성공\")","v":15},{"$f":"COUNTIF('5차 통합테스트'!G281:G299,\"실패\")","v":0},{"$f":"COUNTIF('5차 통합테스트'!G281:G299,\"보류\")","v":0},{"$f":"COUNTIF('5차 통합테스트'!G281:G299,\"개선\")","v":3}]

{"sheet":"5차 통합테스트","index":1,"n_rows":298,"n_cols":15,"rows_kept":298,"cut":false,"hidden":false,"merged":[[269,3,271,3],[196,5,197,5],[196,4,197,4],[196,3,197,3],[254,5,257,5],[254,4,257,4],[254,3,257,3],[162,5,164,5],[162,4,164,4],[162,3,164,3],[196,2,197,2],[185,1,197,1],[185,0,197,0],[131,2,132,2],[128,1,132,1],[63,0,67,0],[63,1,67,1],[11,5,14,5],[11,4,14,4],[25,5,27,5],[25,4,27,4],[25,3,27,3],[146,3,147,3],[146,4,147,4],[146,5,147,5],[135,5,138,5],[135,4,138,4],[135,3,138,3],[47,3,48,3],[47,4,48,4],[47,5,48,5],[131,3,132,3],[131,4,132,4],[131,5,132,5],[0,13,0,14],[2,0,2,14],[79,0,79,14],[100,0,100,14],[109,0,109,14],[25,2,27,2],[28,2,32,2],[90,2,91,2],[184,0,184,14],[0,11,0,12],[0,8,1,8],[0,9,1,9],[94,5,95,5],[94,4,95,4],[94,3,95,3],[47,2,48,2],[155,3,156,3],[155,4,156,4],[155,5,156,5],[155,2,156,2],[90,3,91,3],[90,4,91,4],[90,5,91,5],[0,1,1,1],[0,0,1,0],[0,2,1,2],[0,7,1,7],[68,1,76,1],[68,0,76,0],[3,0,35,0],[0,3,0,5],[0,10,1,10],[11,2,14,2],[3,1,35,1],[36,1,44,1],[45,0,53,0],[45,1,53,1],[54,0,62,0],[54,1,62,1],[36,0,44,0],[28,3,32,3],[28,4,32,4],[28,5,32,5],[11,3,14,3],[80,0,97,0],[80,1,97,1],[128,0,132,0],[133,1,138,1],[133,0,138,0],[94,2,95,2],[146,2,147,2],[124,0,127,0],[114,1,123,1],[114,0,123,0],[101,1,102,1],[103,1,106,1],[101,0,102,0],[103,0,106,0],[110,1,113,1],[110,0,113,0],[135,2,138,2],[295,0,297,0],[295,1,297,1],[235,1,249,1],[198,1,210,1],[198,0,210,0],[221,1,227,1],[221,0,227,0],[216,1,220,1],[287,0,294,0],[287,1,294,1],[265,1,274,1],[265,0,274,0],[280,0,286,0],[280,1,286,1],[279,0,279,14],[275,0,277,0],[282,5,284,5],[282,4,284,4],[282,3,284,3],[282,2,284,2],[275,1,277,1],[269,2,271,2],[269,5,271,5],[269,4,271,4],[170,0,176,0],[124,1,127,1],[139,1,150,1],[139,0,150,0],[165,1,169,1],[165,0,169,0],[170,1,176,1],[253,0,264,0],[177,1,181,1],[177,0,181,0],[235,0,249,0],[250,1,252,1],[250,0,252,0],[216,0,220,0],[228,1,232,1],[228,0,232,0],[211,1,215,1],[211,0,215,0],[234,0,234,14],[253,1,264,1],[254,2,257,2],[162,2,164,2],[151,1,164,1],[151,0,164,0]]}
["TEST ID","테스트 케이스","시나리오","테스트 참여 및 수행일시",null,null,"테스트 결과","결함사항","개선사항","수용\n여부","처리\n상태","처리 결과",null,"처리 확인"]
[null,null,null,"참여자","수행일자","수행시간","성공",{"$nulls":4},"처리자","처리일자","확인자","확인일자"]
["상품입고/등록/출고"]
["FT_01_001","자사 상품 입고 > 배송 완료","1. WMS/AS_IS 미등록 품번에 대해 스캔 입고","기획운영팀, 패션개발팀","2021-07-21","오후 2시~","성공"]
[null,null,"2. WMS입고상품수신 배치 (cron.goods.wms.incomelot.receive) 실행","기획운영팀, 패션개발팀","2021-07-21","오후 2시~","성공"]
[null,null,"3. \"BOS > WMS입고상품관리\"에서 SKU별 데이터 확인","기획운영팀, 패션개발팀","2021-07-21","오후 2시~","성공"]
[null,null,"4. \"BOS > WMS입고단품목록\"에서 미등록된 상품 확인","기획운영팀, 패션개발팀","2021-07-21","오후 2시~","성공"]
[null,null,"    4.1. 모델번호가 있는 상품은 상품으로 등록 가능 (EOF11AJM33)","기획운영팀, 패션개발팀","2021-07-21","오후 2시~","성공"]
[null,null,"    4.2. 모델번호가 없는 상품은 사은품으로 등록 가능 -> <사은품> 등록 버튼 클릭해 사은품을 등록","기획운영팀, 패션개발팀","2021-07-21","오후 2시~","성공"]
[null,null,"5. SCM에 촬영업체로 로그인 (ID/PW : eskimfilm / 1q2w3e4r5t)","기획운영팀, 패션개발팀","2021-07-21","오후 2시~","성공"]
[null,null,"    5.1. \"SCM > 상품 > 상품관리 > 자사단품등록\"에서 해당 정보 입력하고 <저장> 버튼 클릭","기획운영팀, 패션개발팀","2021-07-21","오후 2시~","성공"]
[null,null,"    5.2. \"SCM > 상품 > 상품관리 > 상품목록\"에서 위에 등록한 상품 조회 후 상품코드 클릭해서 \"상품상세\" 팝업 화면의 \"옵션/재고\" 정보 탭에서 <등록> 버튼 클릭해 이미지 업로드","기획운영팀, 패션개발팀","2021-07-21","오후 2시~","개선",null,"기본 대표와 마우스 오버를 기본적으로 1, 2 번으로 고정할 수 있도록 개선 요청\n=> 파일명 규칙대로 들어오지 않을 경우 (예를 들어 2번이 소재컷일 경우) 문제될 수 있음. 따라서 명확한 정의가 필요함","N"]
[{"$nulls":6},"개선",null,"주문 시, 재고를 바라보는 데이터가 BOS 판매가능재고가 아닌 WMS 실 재고를 바라볼 수 있도록 (예를 들어 유아동의 경우 대량 구매건이 있어서 이슈가 생길 수 있음)\n=> WMS재고(SKU단위 65,000건 기준) 배치가 10분 내에 수행되며, 주문이 되면 출고대기건을 집계하고 있어 실제 고객이 구매할 수 있는 재고수에 출고대기건을 차감해 적용해 처리하고 있음. 따라서 실시간 처리 시 성능상 문제도 있어 배치재고로 처리하는 것으로 고객과 합의함(7/23일)","N"]
[{"$nulls":6},"개선",null,"상품 사이즈옵션 순서가 WMS에서 들어온 순서가 뒤죽바죽이여도 오름차순으로 자동으로 노출될 수 있도록한 as-is 쿼리 사용해 달라(영문으로 된 사이즈 순서는 확인 필요)\n=> 사이즈 노출 순서 기준에 대해 알려주세요","Y"]
[{"$nulls":6},"개선",null,"상세정보 내 정보유지 기능 옆에 안내 문구 제공 필요 / 저장 시, 팝업 안내 문구 수정 필요","Y"]
[null,null,"6. \"BOS > 상품 > 상품관리 > 상품목록\"에서 위에 등록한 상품 조회 후 상품코드 클릭해서 \"상품상세\" 팝업 화면에서 옵션 1개 추가금(1,000원) 부여 및 \"승인완료\"로 상태 변경","기획운영팀, 패션개발팀","2021-07-21","오후 2시~","성공"]
[null,null,"7. 위에 등록한 상품으로 프론트의 상품상세 페이지로 이동해 옵션 1개의 추가금 데이터 확인","기획운영팀, 패션개발팀","2021-07-21","오후 2시~","성공",null,"네이버 주문형 주문 시, 네이버 배송지 주소못불러옴 >> 로그인한 계정의 네이버 주소 값으로서 이상 없음"]
[null,null,"8. 상품 추가금 옵션 1개, 단일옵션 1개 장바구니에 담아 구매","기획운영팀, 패션개발팀","2021-07-21","오후 2시~","성공",null,"네이버 주문형 주문 시, 네이버 배송지 주소못불러옴 >> 로그인한 계정의 네이버 주소 값으로서 이상 없음"]
[null,null,"9. WMS로 출고지정및요청 배치 실행 후 프론트/BOS의 상태 확인 (상품준비중)","기획운영팀, 패션개발팀, 서보성 이사","2021-07-21","오후 2시~","성공"]
[null,null,"10. WMS에서 출고지시 배치 실행 > 피킹지시(송장채번됨) -> 송장출력 (서보성 이사 지원 필요)","기획운영팀, 패션개발팀, 서보성 이사","2021-07-21","오후 2시~","성공"]
[null,null,"11. WMS로부터 송장번호수신 배치 실행 -> FRONT/BOS 상태 확인 (배송준비중)","기획운영팀, 패션개발팀, 서보성 이사","2021-07-21","오후 2시~","성공"]
[null,null,"12. WMS에서 출고확정 처리 -> CJ대한통운으로 배송지시송신 배치 실행 -> 스윗트래커 확인","기획운영팀, 패션개발팀, 서보성 이사","2021-07-21","오후 2시~","성공"]
[null,null,"13. BOS에서 출고결과수신 배치 실행 후 FRONT/BOS 상태 확인 (배송중)","기획운영팀, 패션개발팀, 서보성 이사","2021-07-21","오후 2시~","성공"]
[null,null,"    13.1. 마이페이지의 해당 주문건에 대해 상태 확인 (<배송추적> 버튼 노출. 단, 내부망WMS의 송장번호를 운영WMS의 송장번호로 동일하게 사용중이며 따라서, 테스트 시의 운영WMS이 송장번호는 이미 배송완료로 된 상태이어서 노출 안 될 수도 있음)","기획운영팀, 패션개발팀, 서보성 이사","2021-07-21","오후 2시~","성공"]
[null,null,"14. 배송중인 주문건에 대해 스윗트래커에 배송추적요청 배치 실행 (결과가 최대 2시간 안에 도착하며 그때 FRONT/BOS 상태 확인)","기획운영팀, 패션개발팀, 서보성 이사","2021-07-21","오후 2시~","성공"]
[null,null,"    14.1. 마이페이지의 해당 주문건에 대해 상태 확인 (리뷰 버튼 노출 확인)","기획운영팀, 패션개발팀, 서보성 이사","2021-07-21","오후 2시~","개선",null,"키, 몸무게 필수여부 확인 필요 > 선택값으로 변경","Y"]
[{"$nulls":6},"개선",null,"BOS 목록에서 영상인지, 이미지 인지 확인할 수 있는 기능 필요 > 영상, 승인 컬럼 추가 필요\n=> 목록의 \"상품평유형\" 값을 \"일반, 포토, 영상, 포토/영상\"으로 변경\n승인 칼럼은 \"확인어부\" 칼럼임","Y","완료","김덕규","2021-07-24"]
[{"$nulls":6},"개선",null,"상품상세와 마이페이지의 리뷰 수량은 \"전입집계합 + 당일건수합\"으로 처리 필요","Y"]
[null,null,"    14.2. 스윗트래커로부터 배송완료 콜백이 호출된 후 상태 확인 (배송완료)","기획운영팀, 패션개발팀","2021-07-21","오후 2시~","실패","BOS\n출고처지정일시 정보 노출되지 않음",null,null,"완료","전석훈","2021-07-22"]
[{"$nulls":6},"실패","Front\n배송완료 시, 하단에 구매확정 안내 정보가 비정상으로 노출",null,null,"완료","문달호","2021-07-21"]
[{"$nulls":6},"실패","Front\n마이페이지 내 주문내역에서 A상품 구매확정 후, 위치가 변화되는 현상","정렬기준은 \"주문상태코드\" 기준임. 정렬기준을 다시 정리해 주세요.\n >> 주문접수, 상품준비중, 배송중, 배송완료 순으로 노출되면 됨","Y"]
[{"$nulls":6},"개선",null,"배송완료 시, 배송조회 버튼 비노출되고 있는데 안사라지게 할 것인지 확인 필요\n >> 마크업 변경 수준건으로 개선 불가\n >> 다른 대안 고민 필요\n >>협의 필요","N"]
[{"$nulls":6},"개선",null,"주문목록 진입 시, 기본 일주일로 기간 정하고 다른 기간 검색 버튼은 미선택 상태로 전환","Y"]
[null,null,"15. \"FRONT > 마이페이지\"에서 구매확정 처리","기획운영팀, 패션개발팀","2021-07-21","오후 2시~","성공"]
[null,null,"    15.1. \"FRONT > 마이페이지 > 주문확인/배송조회\"에서 해당 주문건의 상태 확인 (구매확정)","기획운영팀, 패션개발팀, 서보성 이사","2021-07-21","오후 2시~","성공"]
[null,null,"    15.2. 구매포인트 적립된 걸 확인 (\"FRONT > 마이페이지 > STYLE포인트\" 화면에서 확인)","기획운영팀, 패션개발팀, 서보성 이사","2021-07-21","오후 2시~","성공"]
["FT_01_002","업체 상품 등록 및 확인","1. SCM에 입점업체로 로그인 (ID/PW : eskimSupply / 1q2w3e4r5t)","기획운영팀, 패션개발팀, 입점MD","2021-07-21","오전 10 ~12시","성공"]
[null,null,"2. \"SCM > 상품 > 상품관리 > 상품대량등록\"에서 업체명 옆의 배송비 정책, 출고처 설정","기획운영팀, 패션개발팀, 입점MD","2021-07-21","오전 10 ~12시","성공"]
[null,null,"3. 엑셀양식 다운로드 및 엑셀양식에 정보 입력 (사전 준비)","기획운영팀, 패션개발팀, 입점MD","2021-07-21","오전 10 ~12시","성공"]
[null,null,"4. <대량입점상품등록> 버튼 클릭해 엑셀파일 업로드하여 입점상품 등록","기획운영팀, 패션개발팀, 입점MD","2021-07-21","오전 10 ~12시","성공"]
[null,null,"5. 리스트에서 등록 결과 확인 (상품등록여부가 Y인 것만 정상 등록된 것임)","기획운영팀, 패션개발팀, 입점MD","2021-07-21","오전 10 ~12시","성공"]
[null,null,"6. 입점 상품 이미지 파일명 규칙에 맞게 파일명 변경 후    <이미지대량등록> 버튼 클릭해 이미지 업로드\n    [파일명 규칙]\n    상품메인컷 : 상품코드_01.jpg(앞),상품코드_02.jpg(뒤)\n    상품모델컷 : 상품코드_C1.jpg ~ 상품코드_C5.jpg\n    상품상세컷 : 상품코드_D1.jpg ~ 상품코드_D20.jpg\n    상품소재컷 : 상품코드_F1.jpg\n    상품라벨컷 : 상품코드_L1.jpg, (상품코드_L2.jpg)","기획운영팀, 패션개발팀, 입점MD","2021-07-21","오전 10 ~12시","성공"]
[null,null,"    6.1. 상품 등록이 정상적으로 되면 \"정보부족\" 상태가 된다. (7번 항목에서 확인)","기획운영팀, 패션개발팀, 입점MD","2021-07-21","오전 10 ~12시","성공"]
[null,null,"7. \"BOS > 상품 > 상품관리 > 상품목록\"에서 위에 등록한 상품 조회 후 상품코드 클릭해서 \"상품상세\" 팝업 화면에서 \"승인완료\"로 상태 변경 후 저장","기획운영팀, 패션개발팀, 입점MD","2021-07-21","오전 10 ~12시","성공"]
[null,null,"8. 위에 등록한 상품으로 프론트의 상품상세 페이지로 이동해 확인","기획운영팀, 패션개발팀, 입점MD","2021-07-21","오전 10 ~12시","성공"]
["FT_01_003","딜 상품 생성 및 확인","1. \"BOS > 상품 > 상품관리 > 상품목록\"에서 <딜상품등록> 선택하여 구성 진행","MD, 기획운영팀, 패션개발팀","2021-07-21","오전 10 ~12시","개선",null,"상태일괄적용 \n> 버튼 삭제 후, 그냥 열려 있는 상태로","Y","완료","김은실","2021-07-28"]
[null,null,"2. 대표 상품명, 성별, 제조년월일, 년도/시즌, 원산지 설정","MD, 기획운영팀, 패션개발팀","2021-07-21","오전 10 ~12시","성공"]
[null,null,"3. <구성상품추가>를 선택하여 딜 구성상품추가 설정 (일반상품만 추가 가능하며 최대 200개까지 등록 가능)","MD, 기획운영팀, 패션개발팀","2021-07-21","오전 10 ~12시","성공"]
[{"$nulls":6},"개선",null,"딜상품 내 구성상품 순서 수정 \n> 엑셀로 변경\n> 양식 내,컬럼 추가 필요"]
[null,null,"4. 기준으로 설정할 상품에 기준여부(품목/전시카테고리) 선택, 대표가격으로 설정할 상품에 대표여부 선택 후 저장","MD, 기획운영팀, 패션개발팀","2021-07-21","오전 10 ~12시","개선",null,"제조년월일, 원산지 필수 항목 \n > 제조년월일 오늘날짜로 나오게 변경\n > 원산지는 미입력으로 변경","Y"]
[null,null,"5. 상품목록에서 등록일자를 <오늘>로 설정 후 조회하여 등록상품 확인","MD, 기획운영팀, 패션개발팀","2021-07-21","오전 10 ~12시","성공"]
[null,null,"6. 상품명을 클릭해 \"상품 상세\"팝업 화면의  \"옵션/재고정보\"탭에서 <등록> 버튼을 클릭하여 이미지 업로드","MD, 기획운영팀, 패션개발팀","2021-07-21","오전 10 ~12시","성공"]
[null,null,"7. \"기본정보\"탭의 상품상태를 \"승인완료\"로 상태 변경 후 저장","MD, 기획운영팀, 패션개발팀","2021-07-21","오전 10 ~12시","성공"]
[null,null,"8. 등록한 상품을 프론트의 상품상세 페이지로 이동해 구성 내용 노출되는지 확인","MD, 기획운영팀, 패션개발팀","2021-07-21","오전 10 ~12시","성공"]
["FT_01_004","세트상품 생성 및 확인","1. \"BOS > 상품 > 상품관리 > 상품목록\"에서 <세트상품등록> 선택하여 구성 진행","MD, 기획운영팀, 패션개발팀","2021-07-21","오전 10 ~12시","성공"]
[null,null,"2. 대표 상품명, 성별, 제조년월일, 년도/시즌, 원산지 설정","MD, 기획운영팀, 패션개발팀","2021-07-21","오전 10 ~12시","성공"]
[null,null,"3. <구성상품추가>를 선택하여 세트 구성상품추가 설정\n    - 자사 내 동일 업체 내 일반상품으로 구성 가능","MD, 기획운영팀, 패션개발팀","2021-07-21","오전 10 ~12시","성공"]
[null,null,"4. 구성상품별 세트구성수량 및 세트구성상품판매가 설정","MD, 기획운영팀, 패션개발팀","2021-07-21","오전 10 ~12시","개선",null,"제조년월일, 원산지 필수 항목 \n > 제조년월일 오늘날짜로 나오게 변경\n > 원산지는 기본값(대한민국)으로 변경","Y"]
[null,null,"5. 기준으로 설정할 상품에 기준여부 선택 후, 저장","MD, 기획운영팀, 패션개발팀","2021-07-21","오전 10 ~12시","성공"]
[null,null,"6. 상품목록에서 등록일자를 <오늘>로 설정 후 조회하여 등록상품 확인","MD, 기획운영팀, 패션개발팀","2021-07-21","오전 10 ~12시","성공"]
[null,null,"7. 상품명을 클릭해 \"상품 상세\"팝업 화면의  \"옵션/재고정보\"탭에서 <등록> 버튼을 클릭하여 이미지 업로드","MD, 기획운영팀, 패션개발팀","2021-07-21","오전 10 ~12시","성공"]
[null,null,"8. \"기본정보\"탭의 상품상태를 \"승인완료\"로 상태 변경 후 저장","MD, 기획운영팀, 패션개발팀","2021-07-21","오전 10 ~12시","성공"]
[null,null,"9. 등록한 상품을 프론트의 상품상세 페이지로 이동해 구성 내용 노출되는지 확인","MD, 기획운영팀, 패션개발팀","2021-07-21","오전 10 ~12시","성공"]
["FT_01_005","예약판매 상품 등록 및 확인","1. \"BOS > 상품 > 상품관리 > 상품예약판매관리\" 에서 <예약판매등록> 선택","MD, 기획운영팀, 패션개발팀","2021-07-21","오전 10 ~12시","성공"]
[null,null,"2. 출고예정일 7월 31일로 설정 후 <상품조회>를 쿨릭하여 상품설정후 자장","MD, 기획운영팀, 패션개발팀","2021-07-21","오전 10 ~12시","개선",null,"세트상품의 할인율 표시 개선으로 노출 필요\n세트상품 상품기술 하단 내 각 상품명 노출될 수 있도록 개선 필요","Y"]
[null,null,"3. 예약판매로 등록한 상품의 프론트 상품상세 페이지로 이동하여 예약 날짜 확인","MD, 기획운영팀, 패션개발팀","2021-07-21","오전 10 ~12시","성공"]
[null,null,"4. 주문을 하고 출고처지정 배치를 실행","기획운영팀, 패션개발팀","2021-07-21","오전 10 ~12시","개선",null,"(예약일을 더 딜레이 시키고 싶어할 때, 출고예정일 이전에) 수정 기능을 넣어달라","Y"]
[null,null,"5. \"BOS > 주문/배송 > 주문관리 > 주문목록\"  화면에서 해당 주문번호로 조회해 \"출고처\" 정보가 없는 것을 확인","기획운영팀, 패션개발팀","2021-07-21","오전 10 ~12시","성공"]
["FT_01_006","사은품 등록 및 확인","1. WMS에 입고된 상품인지 확인","MD, 기획운영팀, 패션개발팀","2021-07-22","오후 3시~","성공"]
[null,null,"2. 해당 상품 선택하여 사은픔 등록 선택","MD, 기획운영팀, 패션개발팀","2021-07-22","오후 3시~","성공"]
[null,null,"3. 사은품 관리로 메뉴로 이동하여 사은품 등록된 상품인지 확인","MD, 기획운영팀, 패션개발팀","2021-07-22","오후 3시~","성공"]
[null,null,"4. (이미지가 업는 경우) 사은품 상세에서 이미지 등록\n     또는 SCM에서 사은품 관리에서 이미지 등록","MD, 기획운영팀, 패션개발팀","2021-07-22","오후 3시~","성공"]
[null,null,"5. 사은품 프로모션 관리에서 프로모션 등록","MD, 기획운영팀, 패션개발팀","2021-07-22","오후 3시~","성공"]
[null,null,"6. 프로모션명, 행사기간, 적용몰 구분 설정","MD, 기획운영팀, 패션개발팀","2021-07-22","오후 3시~","성공"]
[null,null,"7. 대상 상품 설정\n    - 브랜드(버커루, ab.f.z), 상품 설정","MD, 기획운영팀, 패션개발팀","2021-07-22","오후 3시~","성공"]
[null,null,"8. 적용 사은품 정보\n    - 지급방법 : 선택 사은품 (적용몰을 제휴몰을 선택 시 불가. 자사몰만 적용됨)\n    - 사은품 조건 1 : 금액 50000원\n       >> 지급사은품 2개 선택 , 한개 사은품 포인트 1000원 설정, 한정수량 10으로 \n            각 설정(항목 더블클릭)\n\n    - 사은품 조건 2 : 금액 70000원\n       >> 지급사은품 1개 선택 ,포인트 미입력, 한정수량 10으로 각 설정(항목 더블클릭)","MD, 기획운영팀, 패션개발팀","2021-07-22","오후 3시~","실패","등록 시, 오류 발생 (금액 콤마(,) 때문)",null,null,"완료","이태영","2021-07-22","조현민","07월 26일"]
[null,null,"9. 설정 완료 후, Front에서 해당 상품 주문진행하여 주문서에서 정상 노출되는지 확인","MD, 기획운영팀, 패션개발팀","2021-07-22","오후 3시~","성공"]
[]
[]
["회원 관련"]
["FT_02_001","일반회원 가입 > 간편회원가입 > 탈퇴","1. \"Front > 회원가입\" 화면에서 일반회원 가입","기획운영팀, 패션개발팀","2021-07-21","오후 4시~","성공"]
[null,null,"    1.1. 가입완료이 되면 자동 로그인 되며 메인으로 이동한다. (가입축하쿠폰이 발급되며 알림톡이 발송. 알림톡 확인)","기획운영팀, 패션개발팀","2021-07-21","오후 4시~","성공"]
[null,null,"    1.2. \"FRONT > 마이페이지 > 쿠폰\" 화면에서 쿠폰(신규가입감사) 노출 확인 또는 \"BOS > 활동회원목록\"에서 해당 계정 검색해서 쿠폰 1개 발급된 거 확인 (회원상세 > 쿠폰내역 탭)","기획운영팀, 패션개발팀","2021-07-21","오후 4시~","성공"]
[null,null,"2. 로그아웃 후 위 일반회원으로 가입된 회원이 네이버 아이디로 간편 가입 (FRONT에 기가입된 CI와 동일한 CI를 가진 네이버 계정으로 간편가입 시작)","기획운영팀, 패션개발팀","2021-07-21","오후 4시~","성공"]
[null,null,"    2.1. 프론트의 \"GNB > 회원가입\" 링크 클릭 -> 회원가입 화면에서 <네이버> 아이콘 이미지 클릭","기획운영팀, 패션개발팀","2021-07-21","오후 4시~","성공"]
[null,null,"    2.2. 가입완료 후 자동 로그인 되며 메인으로 이동된다. 기가입자의 연동여부는 TB_CUSTOMER_SNS 테이블의 데이터를 확인한다.\n\nSELECT * \nFROM TB_CUSTOMER_SNS\nWHERE CUST_NO IN (\n\tSELECT CUST_NO \n\tFROM TB_CUSTOMER\n\tWHERE CUST_ID = 'duckkyu71'\n)","기획운영팀, 패션개발팀","2021-07-21","오후 4시~","성공"]
[null,null,"3. 로그아웃 후 해당 네이버 로그인을 해서 계정로그인 여부 확인","기획운영팀, 패션개발팀","2021-07-21","오후 4시~","성공"]
[null,null,"    3.1. 상품 클릭하고 \"Front > 상품상세\" 이동하여 상품문의 1개 남김","기획운영팀, 패션개발팀","2021-07-21","오후 4시~","성공"]
[null,null,"    3.2. \"Front > 고객센터\" 이동하여 1:1문의 1개 남김","기획운영팀, 패션개발팀","2021-07-21","오후 4시~","성공"]
[null,null,"    3.3. \"BOS > 회원/마케팅 > 회원관리 > 활동회원목록 > 해당계정검색 > 회원상세\" 화면의 포인트내역 탭에서 5,000 포인트 부여","기획운영팀, 패션개발팀","2021-07-21","오후 4시~","성공"]
[null,null,"    3.4. BOS > 회원/마케팅 > 상담관리 > 1:1문의 이동, 작성글에 답변 저장 --> 알림톡 수신 확인","기획운영팀, 패션개발팀","2021-07-21","오후 4시~","개선",null,"답변 템플릿 자동으로 노출되도록 수정 필요","Y","완료","김덕규","2021-07-22","조현민","7월 26일"]
[{"$nulls":6},"개선",null,"등록된 이미지 팝업 사이즈 크게 조절 필요","Y","완료","김덕규","2021-07-24"]
[null,null,"    3.5. BOS > 회원/마케팅 > 상담관리 > 상품문의관리 이동, 작성글에 답변 저장 -->알림톡 수신 확인","기획운영팀, 패션개발팀","2021-07-21","오후 4시~","개선",null,"답변 템플릿 자동으로 노출되도록 수정 필요","Y","완료","김덕규","2021-07-22","조현민","7월 26일"]
[null,null,"4. \"Front > 마이페이지\" 이동. 쿠폰/포인트/1:1문의/상품문의 답변 정상 노출 확인","기획운영팀, 패션개발팀","2021-07-21","오후 4시~","성공"]
[null,null,"5. \"Front > 마이페이지 > 회원탈퇴\" 화면으로 이동. 주문/취소/반품/교환 건이 없는 경우 탈퇴 처리","기획운영팀, 패션개발팀","2021-07-21","오후 4시~","실패","탈퇴 시 GNB \"로그아웃\"으로 남아있는 현상",null,null,"완료","신주승","2021-07-21","조현민","7월 27일"]
[{"$nulls":6},"개선",null,"등록 배송지 20개로 제한","Y",null,"신주승"]
[null,null,"    5.1 \"BOS > 회원마/케팅 > 회원관리 > 탈퇴회원목록\" 화면에서 탈퇴한 아이디로 조회해 노출되는지 확인","기획운영팀, 패션개발팀","2021-07-21","오후 4시~","개선"]
[null,null,"6. \"Front > 회원가입\" 화면에서 재가입 시 가입 불가 상태 확인","기획운영팀, 패션개발팀","2021-07-21","오후 4시~","개선",null,"<로그인>, <아이디찾기> 버튼 비노출","Y","완료","신주승","2021-07-21","조현민","7월 27일"]
[]
[]
["제휴몰 - 샵링커(상품 및 재고 연동)"]
["FT_05_001","샵링커-상품연동","1. 샵링커에 전송할 상품코드 엑셀업로드 (사전에 파일 준비)\n\n* T205KC100P : 가격 데이터 확인 (59,900원 / 49,000원). TBJ만 가격연계함 (\"BOS > 영업망관리 > 기준관리 > 제휴몰가격연계관리\"에서 확인)\n* N214UU808P : 신규폼 + 안전인증(X) + 사이즈정보(X)\n* EOF11AJM33 : 신규폼 + 안전인증(O) + 사이즈정보(O)","MD, 기획운영팀, 패션개발팀","2021-07-22","오전 11시 반~","성공"]
[null,null,"2. 샵링커 관리자화면에서 등록상품 확인 (\n   샵링커 관리자 주소 : https://www.shoplinker.co.kr (id/pw : istyle1 / istyle1!)\n   - 가격연계여부에 따른 금액설정 확인 : T205KC100P 상품의 가격 데이터 확인 (59,900원 / 49,000원)\n   - 상품상세신규폼 확인\n     * N214UU808P의 \"상품명\" 클릭해 상품상세기술서 확인 (사이즈정보가 없어서 기본사이즈디폴트이미지가 노출됨)\n     * EOF11AJM33의 \"상품명\" 클릭해 상품상세기술서 확인 (사이즈정보는 \"FRONT > 상품상세\" 화면에서 \"사이즈정보\" 클릭하면 노출되는 팝업에서 확인)","MD, 기획운영팀, 패션개발팀","2021-07-22","오전 11시 반~","성공"]
["FT_05_002","샵링커-재고연동","1. \"샵링커관리자 > 상품관리 > 상품조호회/수정\"에서 검색항목을 \"고객사상품코드\"로 선택하고 재고 연동할 상품(상품코드 : N214UU808P)을 검색 후 샵링커상품코드를 클릭해 재고를 확인","MD, 기획운영팀, 패션개발팀","2021-07-22","오전 11시 반~","성공"]
[null,null,"2. \"BOS > 상품 > 상품관리 > 상품목록\" 화면에서 N214UU808P 상품코드 입력 후 조회 -> 상품코드 클릭해서 \"상품상세\" 화면의 \"옵션/재고\" 탭에서 하나의 옵션의 안전재고를 10으로 변경","MD, 기획운영팀, 패션개발팀","2021-07-22","오전 11시 반~","성공"]
[null,null,"3. \"BOS > 운영관리 > 시스템관리 > 배치관리\" 화면에서 \"샵링커재고변경15시\" 배치를 실행. 샵링커로 변경된 재고만 전송됨","MD, 기획운영팀, 패션개발팀","2021-07-22","오전 11시 반~","성공"]
[null,null,"4. \"샵링커관리자 > 상품관리 > 상품조호회/수정\"에서 검색항목을 \"고객사상품코드\"로 선택하고 재고 연동할 상품(상품코드 : N214UU808P)을 검색 후 샵링커상품코드를 클릭해 재고를 확인","MD, 기획운영팀, 패션개발팀","2021-07-22","오전 11시 반~","성공"]
[]
[]
["전시 및 프로모션 관리"]
["FT_06_001","메인 전시 관리","1. 메인 설정 확인","MD, 기획운영팀, 패션개발팀","2021-07-22","오후 3시~","성공"]
[null,null,"    1.1 전시 > (대분류)몰메인 ","MD, 기획운영팀, 패션개발팀","2021-07-22","오후 3시~","성공"]
[null,null,"2. 각 요소 안내","MD, 기획운영팀, 패션개발팀","2021-07-22","오후 3시~","성공"]
[null,null,"    2.1 TOP배너, GNB브랜드, 카테고리, 롤링배너, 신상품, 기획전콘텐츠, 베스트타이틀, 하프(1/2)배너, 핫딜, 롤링배너, MD추천, 추천상품,TV타이틀","MD, 기획운영팀, 패션개발팀","2021-07-22","오후 3시~","성공"]
["FT_06_002","브랜드 전시 관리","1. TBJ 브랜드 메인 설정 확인","MD, 기획운영팀, 패션개발팀","2021-07-22","오후 3시~","성공"]
[null,null,"    1.1 전시 > 메인전시관리 > 대분류(브랜드메인 선택)","MD, 기획운영팀, 패션개발팀","2021-07-22","오후 3시~","성공"]
[null,null,"    1.2 브랜드조회에서 'TBJ' 조회","MD, 기획운영팀, 패션개발팀","2021-07-22","오후 3시~","성공"]
[null,null,"2. 각 요소 안내","MD, 기획운영팀, 패션개발팀","2021-07-22","오후 3시~","성공"]
[null,null,"    2.1 GNB, 추천상품, 메인롤링배너, 브랜드소개, 이벤트및기타배너, 신상품, 베스트, MD추천, 룩북, 기획전콘텐츠, TV타이틀, 상품","MD, 기획운영팀, 패션개발팀","2021-07-22","오후 3시~","실패","GNB 추천상품에서 등록 시, 넘버링 오류(1, 2 순으로 노출되어야 함)"]
[null,null,"    2.2 소개 및 상품쪽 수정 후, Front 확인","MD, 기획운영팀, 패션개발팀","2021-07-22","오후 3시~","성공"]
[null,null,"3. 브랜드 컬러 변경","MD, 기획운영팀, 패션개발팀","2021-07-22","오후 3시~","성공"]
[null,null,"    3.1 하단 '브랜드그룹' 선택하여 팝업에서 'TBJ' 검색","MD, 기획운영팀, 패션개발팀","2021-07-22","오후 3시~","성공"]
[null,null,"    3.2 결과에서 TBJ 확인 및 선택 후, RGB 코드를 7C7C7C 로 입력","MD, 기획운영팀, 패션개발팀","2021-07-22","오후 3시~","성공"]
[null,null,"    3.3 Front에서 변경된 컬러 확인","MD, 기획운영팀, 패션개발팀","2021-07-22","오후 3시~","성공"]
["FT_06_003","카테고리 전시 관리","1. 여성 카테고리 메인 설정 확인","MD, 기획운영팀, 패션개발팀","2021-07-22","오후 3시~","성공"]
[null,null,"    1.1 전시 > (대분류)카테고리메인 > (중분류)여성","MD, 기획운영팀, 패션개발팀","2021-07-22","오후 3시~","성공"]
[null,null,"2. 각 요소 안내","MD, 기획운영팀, 패션개발팀","2021-07-22","오후 3시~","성공"]
[null,null,"    2.1 GNB 기획전배너, 메인배너, 카테고리영역, 신상품,베스트","MD, 기획운영팀, 패션개발팀","2021-07-22","오후 3시~","개선",null,"등록할 배너의 이미지 사이즈 표기 필요","Y"]
["FT_06_004","아울렛 전시 관리","1. 아울렛 메인 설정 확인","MD, 기획운영팀, 패션개발팀","2021-07-22","오후 3시~","성공"]
[null,null,"    1.1 전시 > (대분류)아울렛메인","MD, 기획운영팀, 패션개발팀","2021-07-22","오후 3시~","성공"]
[null,null,"2. 각 요소 안내","MD, 기획운영팀, 패션개발팀","2021-07-22","오후 3시~","성공"]
[null,null,"    2.1 GNB 기획전배너, 메인롤링배너, MD추천, 카테고리영역, 베스트","MD, 기획운영팀, 패션개발팀","2021-07-22","오후 3시~","개선",null,"메인 롤링 배너 텍스트 컬러 설정은 모바일에 한해서만 된다는 문구 추가 필요\n >> 모바일에만 적용\n으로 문구 노출","Y"]
[{"$nulls":6},"개선",null,"관리자 화면 내 수동관리, 반수동관리 인지 표시 필요","Y"]
["FT_06_005","핫딜 관리","1. 핫딜 설정 확인","MD, 기획운영팀, 패션개발팀","2021-07-22","오후 3시~","성공",{"$nulls":6},"MD\n기획운영팀","7월 27일"]
[null,null,"    1.1 회원/마케팅 > 핫딜관리 이동하여 목록에서 1번 항목 선택","MD, 기획운영팀, 패션개발팀","2021-07-22","오후 3시~","성공",{"$nulls":6},"MD\n기획운영팀","7월 27일"]
[null,null,"2. 상품 순서 및 가격 수정 후, Front 반영 확인","MD, 기획운영팀, 패션개발팀","2021-07-22","오후 3시~","실패","진행기간 검색 조건 확인 필요 => 진행시작일시 기준으로 조회",null,null,"완료","김소원","2021-07-24","MD\n기획운영팀","7월 27일"]
[{"$nulls":6},"실패","소셜상품 가격 적용 배치가 적용이 되지 않음\n=> 시간배치로 처리함",null,null,"완료","김소원","2021-07-24","MD\n기획운영팀","7월 27일"]
[{"$nulls":6},"개선",null,"상품 순서 변경 기능 추가","Y","완료","김소원","2021-07-24","MD\n기획운영팀","7월 27일"]
[{"$nulls":6},"개선",null,"적용중 상태에서도 순서 변경 가능하도록 수정","Y"]
["FT_06_006","쿠폰 생성","1. 즉시할인 쿠폰 생성","MD, 기획운영팀, 패션개발팀","2021-07-22","오후 3시~","성공"]
[null,null,"    1.1. 상품즉시할인가생성 배치 실행","MD, 기획운영팀, 패션개발팀","2021-07-22","오후 3시~","성공"]
[null,null,"    1.2. \"상품검색-부분색인 배치\" 실행","MD, 기획운영팀, 패션개발팀","2021-07-22","오후 3시~","성공"]
[null,null,"2. 장바구니 쿠폰 생성 / 상품 쿠폰 생성\n   -> 공급처/브랜드 지정 / 제외상품 지정 / 제휴채널 > 자사/네이버 두가지 지정 / 입점 상품브랜드 필 포함, 비용배분율 지정 필수","MD, 기획운영팀, 패션개발팀","2021-07-22","오후 3시~","성공"]
[null,null,"    2.1. 상품쿠폰 생성 후 \"상품혜택생성\" 배치 실행","MD, 기획운영팀, 패션개발팀","2021-07-22","오후 3시~","성공"]
[null,null,"3. 검색엔진에 수집 및 인덱싱 요청 (매시 25분으로 설정되어 있음)","MD, 기획운영팀, 패션개발팀","2021-07-22","오후 3시~","성공"]
[null,null,"4. 배송비 쿠폰 생성","MD, 기획운영팀, 패션개발팀","2021-07-22","오후 3시~","성공"]
[null,null,"5. 특수 쿠폰 생성\n--> 장바구니 쿠폰으로 선택 한 후, 신규회원여부 Y로 변경하고 다운로드가능여부 Y로 하여 기간 지정하여 상품상세에서 쿠폰다운로드 노출 확인","MD, 기획운영팀, 패션개발팀","2021-07-22","오후 3시~","실패","선착순 쿠폰 기능 수정 필요",null,null,"완료","최수빈","2021-07-24"]
[{"$nulls":6},"개선",null,"다운로드 가능여부 기능 옆에 관련 문구노출 예정\n >> Y : 상품상세노출 가능 / N : 기획전 및 이벤트 노출\n로 문구 표기 필요","Y","완료","김은실","2021-07-23","조현민","7월 27일"]
[null,null,"--> 장바구니 쿠폰으로 선택 한 후, 결제수단 제어 하는 쿠폰 생성 하여 쿠폰 다운로드 확인","MD, 기획운영팀, 패션개발팀","2021-07-22","오후 3시~","성공"]
[null,null,"--> 장바구니 쿠폰으로 선택 한 후, 시리얼 선택하여 시리얼 키워드 등록 -> 장바구니에서 등록","MD, 기획운영팀, 패션개발팀","2021-07-22","오후 3시~","성공"]
[null,null,"--> 상품/주문서 중 선택 후 사용 등급값 설정 --> 해당 등급만 다운로드 확인","MD, 기획운영팀, 패션개발팀","2021-07-22","오후 3시~","실패","신규회원 제한 걸어놓은 쿠폰으로 다운로드 시도 시, 제공되는 얼럿 오류\n >> 얼럿 제공하는 문구 포함 수정",null,null,"완료","최수빈","2021-07-22"]
["FT_06_007","기획전 관리","1. 기획전 콘텐츠 확인","MD, 기획운영팀, 패션개발팀","2021-07-27","오전 10시~","성공"]
[null,null,"    1.1 회원/마케팅 > 기획전관리 이동하여 목록에서 88번 항목 선택","MD, 기획운영팀, 패션개발팀","2021-07-27","오전 10시~","성공"]
[null,null,"2. 각 요소 안내","MD, 기획운영팀, 패션개발팀","2021-07-27","오전 10시~","성공"]
[null,null,"    2.1 기본 항목들에 대한 안내","MD, 기획운영팀, 패션개발팀","2021-07-27","오전 10시~","성공"]
[null,null,"    2.2 템플릿이동하여 각 요소 안내\n          - HTML(상단), 리뷰조회, 쿠폰조회, 이미지첨부, 유의사항, HTML(하단), 상품등록","MD, 기획운영팀, 패션개발팀","2021-07-27","오전 10시~","개선",null,"템플릿 내 체크박스 설정이 초기화됨\n기본 설정 항목 내 체크박스 설정이 초기화됨\n >> 체크박스 초기회 기능 개선 필요","Y","완료","조민혜","2021-07-28"]
[{"$nulls":6},"개선",null,"(공통) 상품 추가 팝업에서 \n> 상품상태가 승인완료가 기본이 되도록\n> 상품 타입은 일반상품이 기본이 되도록","Y","완료","조민혜","2021-07-29"]
[null,null,"    2.3 상단 HTML 비노출 처리 후, Front 확인","MD, 기획운영팀, 패션개발팀","2021-07-27","오전 10시~","성공"]
[null,null,"3. 제휴 채널을 통한 진입 확인","MD, 기획운영팀, 패션개발팀","2021-07-27","오전 10시~","성공"]
[null,null,"    3.1 제휴채널 설정","MD, 기획운영팀, 패션개발팀","2021-07-27","오전 10시~","성공"]
[null,null,"    3.2 제휴채널을 통한 진입 불가 확인","MD, 기획운영팀, 패션개발팀","2021-07-27","오전 10시~","성공"]
[null,null,"4. 간단 등록 시연","MD, 기획운영팀, 패션개발팀","2021-07-27","오전 10시~","성공"]
[null,null,"    4.1 구분좌(코너) 등록 ","MD, 기획운영팀, 패션개발팀","2021-07-27","오전 10시~","성공"]
[{"$nulls":6},"개선",null,"구분좌 폰트 확대","Y"]
[{"$nulls":6},"개선",null,"구분좌 내 상품 순서 변경 기능 추가 요청"]
["FT_06_008","이벤트 관리","1. 기획전 콘텐츠 확인","MD, 기획운영팀, 패션개발팀","2021-07-27","오전 10시~","성공"]
[null,null,"    1.1 회원/마케팅 > 기획전관리 이동하여 목록에서 98번 항목 선택","MD, 기획운영팀, 패션개발팀","2021-07-27","오전 10시~","성공"]
[null,null,"2. 각 요소 안내","MD, 기획운영팀, 패션개발팀","2021-07-27","오전 10시~","성공"]
[null,null,"3. 사용 고객 등급 웰컴회원 해제","MD, 기획운영팀, 패션개발팀","2021-07-27","오전 10시~","성공"]
[null,null,"4. 웰컴회원으로 진입 불가 확인","MD, 기획운영팀, 패션개발팀","2021-07-27","오전 10시~","성공"]
["FT_06_009","설문조사 관리","1. 기획전 콘텐츠 확인","MD, 기획운영팀, 패션개발팀","2021-07-27","오전 10시~","성공",null,"단위 테스트로 갈음"]
[null,null,"    1.1 회원/마케팅 > 기획전관리 이동하여 목록에서 99번 항목 선택","MD, 기획운영팀, 패션개발팀","2021-07-27","오전 10시~","성공",null,"단위 테스트로 갈음"]
[null,null,"2. POLL 관리에서 신규 설문 생성\n    > 중복 참여 불가","MD, 기획운영팀, 패션개발팀","2021-07-27","오전 10시~","성공",null,"단위 테스트로 갈음"]
[null,null,"3. 설문조사 이벤트 생성하는 방법 안내","MD, 기획운영팀, 패션개발팀","2021-07-27","오전 10시~","성공",null,"단위 테스트로 갈음"]
[null,null,"4. Front에서 참여 진행","MD, 기획운영팀, 패션개발팀","2021-07-27","오전 10시~","성공",null,"단위 테스트로 갈음"]
[null,null,"5. 기존 생성했던 설문조사의 중복불가를 중복참여 가능으로 설정 후, Front에서 재참여 ","MD, 기획운영팀, 패션개발팀","2021-07-27","오전 10시~","성공",null,"단위 테스트로 갈음"]
[null,null,"6. 설문 참여 완료 후, 설문 참여자 데이터 확인","MD, 기획운영팀, 패션개발팀","2021-07-27","오전 10시~","성공",null,"단위 테스트로 갈음"]
["FT_06_010","출석체크 관리","1. 기획전 콘텐츠 확인","MD, 기획운영팀, 패션개발팀","2021-07-27","오전 10시~","성공",null,"단위 테스트로 갈음"]
[null,null,"    1.1 회원/마케팅 > 기획전관리 이동하여 목록에서 100번 항목 선택","MD, 기획운영팀, 패션개발팀","2021-07-27","오전 10시~","성공",null,"단위 테스트로 갈음"]
[null,null,"2. 기획전 관리 메뉴에서 출석체크 이벤트 생성","MD, 기획운영팀, 패션개발팀","2021-07-27","오전 10시~","성공",null,"단위 테스트로 갈음"]
[null,null,"3. 각 일자별 혜택 설정\n    - 1일자 : 100포인트, 3000원 할인 쿠폰제공","MD, 기획운영팀, 패션개발팀","2021-07-27","오전 10시~","성공",null,"단위 테스트로 갈음"]
[null,null,"4. 출석체크 이벤트 진입하여 출석체크 진행하고 혜택 확인","MD, 기획운영팀, 패션개발팀","2021-07-27","오전 10시~","성공",null,"단위 테스트로 갈음"]
[]
[]
["주문"]
["FT_03_001","신규 네이버 가입 회원 > 주문\n결제 수단 : 신용카드","1. 기존 CI가 없는 고객으로 네이버 가입","기획운영팀, 패션개발팀","2021-07-23","오전 10시~","성공"]
[null,null,"    1.1. \"FRONT > 회원가입\" 화면에서 <네이버> 아이콘 이미지 클릭해 가입","기획운영팀, 패션개발팀","2021-07-23","오전 10시~","성공"]
[null,null,"    1.2. 네이버의 동의여부 확인 후 가입 완료 확인 (네이버 로그인 후 \"내정보 > 보안설정 > 네아로/네이버인증서\" 목록에서 Istyle24가 있는 경우 <철회하기> 버튼 클릭해야만 노출됨)","기획운영팀, 패션개발팀","2021-07-23","오전 10시~","성공"]
[null,null,"    1.3. 가입완료 후 자동 로그인 되며 메인으로 이동한다.","기획운영팀, 패션개발팀","2021-07-22","오전 10시~","성공"]
[null,null,"2. \"BOS > 회원/마케팅 > 회원관리 > 활동회원목록\" 화면에서 \"간편가입유형\" 검색조건을 \"네이버\"로 선택해 가입한 회원정보 확인","기획운영팀, 패션개발팀","2021-07-23","오전 10시~","성공"]
[null,null,"3. BOS > 활동회원목록 > 해당 계정 검색 > 포인트 5000P/장바구니쿠폰 1개, 배송비쿠폰1개, 상품쿠폰 1개 지급(쿠폰 정해진거 따놓고, 해당 쿠폰번호로 지급)","기획운영팀, 패션개발팀","2021-07-23","오전 10시~","성공"]
[null,null,"4. 하나의 주문번호 내에서, 다음과 같이 복합주문 발생\n >>>상품 N/N/N(딜에서 1종류, 즉시할인걸린상품 1개, 배송비 쿠폰 걸린상품 1개, 다다익선 걸린상품 2개, 세트상품 1개, 추가금걸린 상품 1개, 입점 상품 정하여 3개 ) 상품 코드(규정된 상품코드 담기), 사은품 걸린상품 (조건에맞게), 선포인트상품 1개","기획운영팀, 패션개발팀","2021-07-23","오전 10시~","성공"]
[null,null,"5. 장바구니로 이동 하여 \"시리얼쿠폰코드 : 시리얼\" 입력","기획운영팀, 패션개발팀","2021-07-23","오전 10시~","성공"]
[null,null,"6. 주문서 이동하여 최대할인 선택, 사은품 선택","기획운영팀, 패션개발팀","2021-07-23","오전 10시~","성공"]
[null,null,"7. 결제수단 : 신용카드 로 결제 -> 결제 시 PG 쿠폰 사용 (PG쿠폰 테스트 시 샵ID를 변경해야 함. 따라서 최종 테스트 시 샵ID 변경 후 테스트 진행하는 것이 좋음)","기획운영팀, 패션개발팀","2021-07-23","오전 10시~","성공"]
[null,null,"8. 결제 후 Front > 마이페이지의 주문내역 확인","기획운영팀, 패션개발팀","2021-07-23","오전 10시~","개선",null,"(공통)\nPG 모듈 호출 중, 로딩 화면 추가 필요","Y",null,"전석훈"]
[null,null,"9. BOS에서 내역 확인","기획운영팀, 패션개발팀","2021-07-23","오전 10시~","개선",null,"입점상품의 경우, 업체명이 노출되어야 함\n업체별 어떤 배송비 정책을 가지고 있는지 정보가 노출될 필요 있음"]
[{"$nulls":6},"개선",null,"주문목록에서 동일주문건에 대한 범위 확인이 불가능하여 주문단위 번호로 노출할 수 있도록 개선\n > CS 파트에서 원하는 방향으로 개선 예정","Y"]
["FT_03_002","신규 예스24 가입 회원 > 주문\n결제 수단 : 실시간 계좌이체","1. 기존 CI가 없는 고객으로 예스24 계정으로 가입","기획운영팀, 패션개발팀","2021-07-23","오전 10시~","성공"]
[null,null,"2. Front > 회원가입 > 예스24 가입","기획운영팀, 패션개발팀","2021-07-23","오전 10시~","성공"]
[null,null,"3. 예스24 로그인 팝업 > 로그인","기획운영팀, 패션개발팀","2021-07-23","오전 10시~","성공"]
[null,null,"4. 동의 여부 확인 후 가입 완료 확인","기획운영팀, 패션개발팀","2021-07-23","오전 10시~","성공"]
[null,null,"4. Front > 마이페이지 이동 > 임의값 아이디 생성 및 이름값 예스24 프로필값과 동일한지 확인","기획운영팀, 패션개발팀","2021-07-23","오전 10시~","성공"]
[null,null,"5. BOS > 회원마케팅 > 활동회원목록 -> 가입한 회원정보 확인","기획운영팀, 패션개발팀","2021-07-23","오전 10시~","성공"]
[null,null,"6. BOS > 활동회원목록 > 해당 계정 검색 > 포인트 5000P/장바구니쿠폰 1개, 배송비쿠폰1개, 상품쿠폰 1개 지급(쿠폰 정해진거 따놓고, 해당 쿠폰번호로 지급)","기획운영팀, 패션개발팀","2021-07-23","오전 10시~","성공"]
[null,null,"7. 하나의 주문번호 내에서, 다음과 같이 복합주문 발생\n >>>상품 N/N/N(딜에서 1종류, 즉시할인걸린상품 1개, 배송비 쿠폰 걸린상품 1개, 다다익선 걸린상품 2개, 세트상품 1개, 추가금걸린 상품 1개, 입점 상품 정하여 3개 ) 상품 코드(규정된 상품코드 담기), 사은품 걸린상품 (조건에맞게), 선포인트상품 1개, 해외구매대행+병행수입+주문제작 상품 1개","기획운영팀, 패션개발팀","2021-07-23","오전 10시~","성공"]
[null,null,"8. 장바구니로 이동 하여 \"시리얼쿠폰코드 : 시리얼\" 입력","기획운영팀, 패션개발팀","2021-07-23","오전 10시~","성공"]
[null,null,"9. 주문서 이동하여 최대할인 선택, 사은품 선택","기획운영팀, 패션개발팀","2021-07-23","오전 10시~","성공"]
[null,null,"10. 결제수단 : 실시간 계좌이체 로 결제 -> 결제 시 pg 쿠폰사용","기획운영팀, 패션개발팀","2021-07-23","오전 10시~","성공"]
[null,null,"11. 결제 후 Front > 마이페이지의 주문내역 확인","기획운영팀, 패션개발팀","2021-07-23","오전 10시~","성공"]
[null,null,"12. BOS에서 내역 확인","기획운영팀, 패션개발팀","2021-07-23","오전 10시~","성공"]
["FT_03_003","비회원 > 주문\n결제 수단 : 카카오 페이","1. 여러 상품을 쇼핑백에 저장 후, 비회원 주문으로 주문\n >>>상품 N/N/N(딜에서 1종류, 즉시할인걸린상품 1개, 배송비 쿠폰 걸린상품 1개, 다다익선 걸린상품 2개, 세트상품 1개, 추가금걸린 상품 1개, 입점 상품 정하여 3개 ) 상품 코드(규정된 상품코드 담기), 사은품 걸린상품 (조건에맞게), 선포인트상품 1개","기획운영팀, 패션개발팀","2021-07-23","오전 10시~","성공"]
[null,null,"2. 주문자 정보 및 본인인증 진행","기획운영팀, 패션개발팀","2021-07-23","오전 10시~","성공"]
[null,null,"3. 결제수단 : 카카오페이 로 결제 -> 결제 시, 카카오 페이 App 으로 결제","기획운영팀, 패션개발팀","2021-07-23","오전 10시~","성공"]
[null,null,"4. 결제 후, 비회원 주문 조회로 주문 내용 확인","기획운영팀, 패션개발팀","2021-07-23","오전 10시~","성공"]
[null,null,"5. BOS에서 내역 확인","기획운영팀, 패션개발팀","2021-07-23","오전 10시~","성공"]
["FT_03_004","일반 회원 > 주문\n결제 수단 : 휴대폰 결제","1. 일반회원으로 로그인","기획운영팀, 패션개발팀","2021-07-23","오전 10시~","성공"]
[null,null,"2. 하나의 주문번호 내에서, 다음과 같이 복합주문 발생\n >>>상품 N/N/N(딜에서 1종류, 즉시할인걸린상품 1개, 배송비 쿠폰 걸린상품 1개, 다다익선 걸린상품 2개, 세트상품 1개, 추가금걸린 상품 1개, 입점 상품 정하여 3개 ) 상품 코드(규정된 상품코드 담기), 사은품 걸린상품 (조건에맞게), 선포인트상품 1개","기획운영팀, 패션개발팀","2021-07-23","오전 10시~","실패","쿠폰 모두받기 오류 발생",null,null,"완료","김은실","2021-07-23","조현민","7월 23일"]
[null,null,"3. 결제수단 : 휴대폰 결체 로 결제","기획운영팀, 패션개발팀","2021-07-23","오전 10시~","성공"]
[null,null,"4. 결제 후 Front > 마이페이지의 주문내역 확인","기획운영팀, 패션개발팀","2021-07-23","오전 10시~","성공"]
[null,null,"5. BOS에서 내역 확인","기획운영팀, 패션개발팀","2021-07-23","오전 10시~","개선",null,"주소변경 시, 노출되는 주소에 대한 정보 확인 필요","Y"]
["FT_03_005","일반 회원 > 주문\n결제 수단 : 무통장 입금","1. 일반회원으로 로그인","기획운영팀, 패션개발팀","2021-07-23","오전 10시~","성공"]
[null,null,"2. 하나의 주문번호 내에서, 다음과 같이 복합주문 발생\n >>>상품 N/N/N(딜에서 1종류, 즉시할인걸린상품 1개, 배송비 쿠폰 걸린상품 1개, 다다익선 걸린상품 2개, 세트상품 1개, 추가금걸린 상품 1개, 입점 상품 정하여 3개 ) 상품 코드(규정된 상품코드 담기), 사은품 걸린상품 (조건에맞게), 선포인트상품 1개","기획운영팀, 패션개발팀","2021-07-23","오전 10시~","성공"]
[null,null,"3. 결제수단 : 무통장 입금으로 결제(미 입금)","기획운영팀, 패션개발팀","2021-07-23","오전 10시~","성공"]
[null,null,"4. 결제 후 Front > 마이페이지의 주문내역 확인 : 주문접수로 표기 확인","기획운영팀, 패션개발팀","2021-07-23","오전 10시~","성공"]
[null,null,"5. 입금 처리","기획운영팀, 패션개발팀","2021-07-23","오전 10시~","성공"]
[null,null,"6. 결제 후 Front > 마이페이지의 주문내역 확인 : 결제완료로 표기 확인","기획운영팀, 패션개발팀","2021-07-23","오전 10시~","성공"]
[null,null,"7. BOS에서 내역 확인","기획운영팀, 패션개발팀","2021-07-23","오전 10시~","성공"]
["FT_03_006","일반 회원 > 주문\n결제 수단 : 페이코","1. 일반회원으로 로그인","기획운영팀, 패션개발팀","2021-07-23","오전 10시~","성공"]
[null,null,"2. 하나의 주문번호 내에서, 다음과 같이 복합주문 발생\n >>>상품 N/N/N(딜에서 1종류, 즉시할인걸린상품 1개, 배송비 쿠폰 걸린상품 1개, 다다익선 걸린상품 2개, 세트상품 1개, 추가금걸린 상품 1개, 입점 상품 정하여 3개 ) 상품 코드(규정된 상품코드 담기), 사은품 걸린상품 (조건에맞게), 선포인트상품 1개","기획운영팀, 패션개발팀","2021-07-23","오전 10시~","성공"]
[null,null,"3. 결제수단 : 페이코 로 결제 -> 결제 시, 페이코 App 으로 결제","기획운영팀, 패션개발팀","2021-07-23","오전 10시~","보류","페이코 진행 불가\n=> 신용카드 등록 불가 확인 요청중",null,null,null,"이태영"]
[null,null,"4. 결제 후 Front > 마이페이지의 주문내역 확인","기획운영팀, 패션개발팀","2021-07-23","오전 10시~","보류","페이코 진행 불가\n=> 신용카드 등록 불가 확인 요청중",null,null,null,"이태영"]
[null,null,"5. BOS에서 내역 확인","기획운영팀, 패션개발팀","2021-07-23","오전 10시~","보류","페이코 진행 불가\n=> 신용카드 등록 불가 확인 요청중",null,null,null,"이태영"]
[]
["출고 및 클레임"]
["FT_04_001","주문 완료  > 배송 완료","1. 앞 주문한 케이스들 모두 출고 지시","기획운영팀, 패션개발팀, 개발담당자, 서보성 이사","2021-07-26","오후 2시~","성공"]
[null,null,"2. 송장 내, 사은품 정상적으로 찍히는지 확인","기획운영팀, 패션개발팀, 개발담당자, 서보성 이사","2021-07-26","오후 2시~","성공"]
[null,null,"3. 세트상품 정상적으로 찍히는지 확인","기획운영팀, 패션개발팀, 개발담당자, 서보성 이사","2021-07-26","오후 2시~","성공"]
[null,null,"4. 딜 상품 정상적으로 찍히는지 확인","기획운영팀, 패션개발팀, 개발담당자, 서보성 이사","2021-07-26","오후 2시~","성공"]
[null,null,"5. 송장번호, 송장 데이터 확인","기획운영팀, 패션개발팀, 개발담당자, 서보성 이사","2021-07-26","오후 2시~","성공"]
[null,null,"6. 일부 상품 확정전 결품 처리 --> 결품 문자 및 주문취소 처리 확인","기획운영팀, 패션개발팀, 개발담당자, 서보성 이사","2021-07-26","오후 2시~","성공"]
[null,null,"7. 출고확정 처리","기획운영팀, 패션개발팀, 개발담당자, 서보성 이사","2021-07-26","오후 2시~","성공"]
[]
[null,null,"입점사","기획운영팀, 패션개발팀, 개발담당자, 서보성 이사","2021-07-26","오후 2시~","성공"]
[null,null,"1. 주문서 다운로드 -> 상품 상태 변경확인","기획운영팀, 패션개발팀, 개발담당자, 서보성 이사","2021-07-26","오후 2시~","성공"]
[null,null,"2. 송장 등록","기획운영팀, 패션개발팀, 개발담당자, 서보성 이사","2021-07-26","오후 2시~","성공"]
[null,null,"3. 결품 1개 상품 처리 --> 결품문자 및 주문취소처리 확인","기획운영팀, 패션개발팀, 개발담당자, 서보성 이사","2021-07-26","오후 2시~","개선",null,"오류 얼럿 문구 수정 필요\n=> SUCCESS, ERROR로 표기되고 있음","Y",null,"김지철"]
[null,null,"4. 출고확정 처리","기획운영팀, 패션개발팀, 개발담당자, 서보성 이사","2021-07-26","오후 2시~","성공"]
[]
[null,null,"처리 후 Front에 각 상태 확인","기획운영팀, 패션개발팀, 개발담당자, 서보성 이사","2021-07-26","오후 2시~","개선",null,"품절취소 인 경우, 품절취소로 표기 필요","Y",null,"김지철"]
["FT_04_002","세트 상품 출고\n- WMS 일부 재고 없음","1. 앞 주문한 케이스 중, 세트 상품의 구성상품 중 하나를 0개로 설정","기획운영팀, 패션개발팀, 개발담당자, 서보성 이사","2021-07-26","오후 2시~","성공"]
[null,null,"2. 출고처 지정 배치 실행","기획운영팀, 패션개발팀, 개발담당자, 서보성 이사","2021-07-26","오후 2시~","성공"]
[null,null,"3. 품절로 인한 주문 취소 상태로 변경 확인","기획운영팀, 패션개발팀, 개발담당자, 서보성 이사","2021-07-26","오후 2시~","성공"]
["FT_04_003","배송 완료 > 교환","1. # 주문 건을 교환 요청","기획운영팀, 패션개발팀, 개발담당자, 서보성 이사","2021-07-26","오후 2시~","성공"]
[null,null,"2. 각 상품별로\n    > 미 접수 교환발송 1개\n    > 정상 교환 신청 1개\n    > 입점사 상품 1개 (프론트, BOS에서 처리)\n    > 미착 교환 상품 1개\n    > 과착 교환 상품 1개","기획운영팀, 패션개발팀, 개발담당자, 서보성 이사","2021-07-26","오후 2시~","개선",null,"CJ측으로 데이터 건수 보내는 기준 확인 필요 (오픈DB에 데이터 INSERT 시 건수 제한이 있는지?)","Y",null,"서보성"]
[{"$nulls":6},"개선",null,"회수예외처리에서 완료 버튼 선택 시, 얼럿 문구 수정(문구추후 전달 예정)\n=> SUCCESS, ERROR 로 나옴 => 문구 변경","Y",null,"김지철"]
[{"$nulls":6},"개선",null,"BOS\n직접배송 인 경우, 송장번호 외 택배사 내용 추가 필요 (프론트)","Y",null,"김지철"]
[{"$nulls":6},"개선",null,"교환 건에 대해서는 예약판매상품이라도 출고요청이 되어야 함","Y","완료","문달호","7월 27일"]
[null,null,"3. 접수 내용 진행","기획운영팀, 패션개발팀, 개발담당자, 서보성 이사","2021-07-26","오후 2시~","성공",null,"교환 완료 후, 상품 주문목록에 노출되는 건에 대해 재 확인 필요\n >> 협의 후, 진행\n\n++\n세트 상품 부분 교/반 시나리오 추가 작성 필요","Y"]
[null,null,"4. 자사상품 인터페이스 실행 후 WMS 회수목록 확인> 입고대기여부확인","기획운영팀, 패션개발팀, 개발담당자, 서보성 이사","2021-07-26","오후 2시~","성공"]
[null,null,"5. 자사상품 WMS 회수예외 관리 확인","기획운영팀, 패션개발팀, 개발담당자, 서보성 이사","2021-07-26","오후 2시~","성공"]
[null,null,"6. SCM 로그인","기획운영팀, 패션개발팀, 개발담당자, 서보성 이사","2021-07-26","오후 2시~","성공"]
[null,null,"7. 입점상품 SCM 클레임 확인 -> 입고확인 및 회수컨펌","기획운영팀, 패션개발팀, 개발담당자, 서보성 이사","2021-07-26","오후 2시~","성공"]
[null,null,"8. 자사상품 클레임 송장 등록, 교환 출고 진행","기획운영팀, 패션개발팀, 개발담당자, 서보성 이사","2021-07-26","오후 2시~","성공"]
[null,null,"9. 교환 완료 확인","기획운영팀, 패션개발팀, 개발담당자, 서보성 이사","2021-07-26","오후 2시~","실패","리뷰 작성 시, 리뷰는 여러 번 작성할 수 있으나 포인트는 상품코드 기준으로 1회 지급\n > 월 1일부터 말일까지 최대지급 상품 수는 10개로 제한"]
["FT_04_004","배송 완료 > 반품","1. # 주문 건을 반품 요청","기획운영팀, 패션개발팀, 개발담당자, 서보성 이사","2021-07-26","오후 2시~","성공"]
[null,null,"2. 각 상품별로\n    > 미 접수 반품발송 1개\n    > 정상 반품 신청 1개\n    > 입점사 상품 1개\n    > 미착 반품 상품 1개\n    > 과착 반품 상품 1개","기획운영팀, 패션개발팀, 개발담당자, 서보성 이사","2021-07-26","오후 2시~","성공"]
[null,null,"3. 접수 내용 진행","기획운영팀, 패션개발팀, 개발담당자, 서보성 이사","2021-07-26","오후 2시~","성공"]
[null,null,"4. 자사상품 인터페이스 실행 후 WMS 회수목록 확인> 입고대기여부확인","기획운영팀, 패션개발팀, 개발담당자, 서보성 이사","2021-07-26","오후 2시~","성공"]
[null,null,"5. 자사상품 WMS 회수예외 관리 확인","기획운영팀, 패션개발팀, 개발담당자, 서보성 이사","2021-07-26","오후 2시~","실패","BOS\n주문변경번호 제공되지 않는 현상 수정 필요",null,null,null,"문달호"]
[{"$nulls":6},"개선",null,"기 신청한 목록에 대해 재 수정이 되는 현상에 대해 프로세스 확인 필요","Y",null,"문달호"]
[{"$nulls":6},"개선",null,"WMS 회수예외관리 화면에 주문변경번호 누락, <반품신청> 버튼 재노출","Y",null,"문달호"]
[null,null,"6. SCM 로그인","기획운영팀, 패션개발팀, 개발담당자, 서보성 이사","2021-07-26","오후 2시~","성공"]
[null,null,"7. 입점상품 SCM 클레임 확인 -> 입고확인 및 회수컨펌","기획운영팀, 패션개발팀, 개발담당자, 서보성 이사","2021-07-26","오후 2시~","성공",null,"프로세스 재협의 필요"]
[null,null,"8. BOS에서 환불컨펌 처리","기획운영팀, 패션개발팀, 개발담당자, 서보성 이사","2021-07-26","오후 2시~","성공"]
["FT_04_005","주문 취소","1. Front에서 부분 취소","기획운영팀, 패션개발팀","2021-07-23","오후 3시~","성공"]
[null,null,"2. BOS에서 부분 취소","기획운영팀, 패션개발팀","2021-07-23","오후 3시~","개선",null,"PG점프 가능 개선\n=> 휴대폰결제 관련해 월이 경과한 경우 고객에게 입금해 주는 방식으로 처리할 경우 \"입금액\" 입력할 수 있게","Y"]
[null,null,"3. 상품준비중인 상품, 취소 후에 BOS에서 데이터 확인","기획운영팀, 패션개발팀","2021-07-23","오후 3시~","실패","BOS 주문상세 내역에서 다다익선 데이터 잘못 노출됨\n=> 데이터상으로는 문제 없으며, 다다익선2(금액) 부분이 수량 값과 동일하게 노출되고 있는 현상임",null,null,"완료","전석훈","7월 23일"]
[]
["제휴몰 - 샵링커(상품 및 재고 연동)"]
["FT_05_003","샵링커-주문수집\n(주문 테스트 시, 진행)","1. \"BOS > 영업망관리 > 샵링커 > 샵링커주문수집관리\" 화면에서 주문일 입력 후 <주문수집> 버튼 클릭 ","CS, 기획운영팀, 패션개발팀","2021-07-27","오후 3시~","성공"]
[null,null,"    1.2. 해당 날짜에 대한 주문수집 진행된다. -> <조회> 버튼 클릭 해 결과를 확인한다. (성공, 실패 데이터 확인)","CS, 기획운영팀, 패션개발팀","2021-07-27","오후 3시~","성공"]
[null,null,"    1.3. 주문수집 결과가 성공인 데이터에 대해서는 <주문번호> 클릭 시 주문상세 팝업이 노출되며, 여기서 데이터를 확인한다. (사은품 세팅도 확인) 또는 \"BOS > 주문/배송 > 주문목록\" 화면에서 몰구분을 \"제휴몰\"로 선택 후 조회해서 확인한다.","CS, 기획운영팀, 패션개발팀","2021-07-27","오후 3시~","개선",null,"화면-가용재고 실패 관련 툴팁표시 ","Y","완료","조민혜","7월 27일"]
[{"$nulls":6},"개선",null,"미매핑건 쇼핑몰주문번호 항목 빈칸 확인","Y","완료","조민혜","7월 27일"]
[{"$nulls":6},"개선",null,"주문수집 완료 후, 제휴몰에 업로드 가능한 상태로 초기화할 수 있는 기능 추가","Y","완료","조민혜","7월 28일"]
[null,null,"    1.4. [부분결품 품절] 주문수집 중 한 명이 주문한 3건 중 2건의 실패사유가 \"재고부족\"으로 인한 주문건일 경우 -> 1건만 주문등록이 된다. 재고부족으로 실패한 2건에 대해 \"부분결품 품절\" 알림톡이 발송된다. (알림톡 발송 결과 확인 불가 - 운영 수집건이므로 -> 제휴몰주문업로드를 가지고 테스트 진행)","CS, 기획운영팀, 패션개발팀","2021-07-27","오후 3시~","성공"]
[null,null,"    1.5. [미할당 전체품절] 주문수집 중 한 명이 주문한 3건 중 3건 모두 실패사유가 \"재고부족\"으로 인한 주문실패건일 경우. -> 주문등록이 되지 않는다. 재고부족으로 실패한 3건에 대해 \"미할당 전체품절\" 알림톡이 발송된다. (알림톡 발송 결과 확인 불가 - 운영 수집건이므로 -> 제휴몰주문업로드를 가지고 테스트 진행)","CS, 기획운영팀, 패션개발팀","2021-07-27","오후 3시~","성공"]
["FT_05_004","제휴몰주문업로드\n(주문 테스트 시, 진행)","1. \"BOS > 영업망관리 > 제휴몰주문업로드\" 화면에서 주문엑셀파일을 업로드 (사전 준비)","CS, 기획운영팀, 패션개발팀","2021-07-27","오후 3시~","성공"]
[null,null,"    1.1. 주문업로드 데이터 중 매핑정보(제휴몰ID, 자사상품코드, 옵션코드)가 올바르지 않은 경우 리스트에 빨간색으로 표기된다.","CS, 기획운영팀, 패션개발팀","2021-07-27","오후 3시~","성공"]
[null,null,"2. <주문등록> 버튼을 클릭해 주문을 생성","CS, 기획운영팀, 패션개발팀","2021-07-27","오후 3시~","성공"]
[null,null,"   2.1 주문등록이 완료되면 결과 팝업이 노출 (성공 00건, 실패 00건)","CS, 기획운영팀, 패션개발팀","2021-07-27","오후 3시~","성공"]
[null,null,"    2.2. [부분결품 품절] 주문수집 중 한 명이 주문한 3건 중 2건의 실패사유가 \"재고부족\"으로 인한 주문건일 경우 -> 1건만 주문등록이 된다. 재고부족으로 실패한 2건에 대해 \"부분결품 품절\" 알림톡이 발송된다. (알림톡 발송 결과 확인)","CS, 기획운영팀, 패션개발팀","2021-07-27","오후 3시~","성공"]
[null,null,"    2.3. [미할당 전체품절] 주문수집 중 한 명이 주문한 3건 중 3건 모두 실패사유가 \"재고부족\"으로 인한 주문실패건일 경우. -> 주문등록이 되지 않는다. 재고부족으로 실패한 3건에 대해 \"미할당 전체품절\" 알림톡이 발송된다. (알림톡 발송 결과 확인)","CS, 기획운영팀, 패션개발팀","2021-07-27","오후 3시~","성공"]
[null,null,"3 <결과확인> 버튼을 클릭해 결과를 조회해 성공/실패 내역을 확인한다.","CS, 기획운영팀, 패션개발팀","2021-07-27","오후 3시~","성공"]
[null,null,"   3.1. 주문수집 결과가 성공인 데이터에 대해서는 <주문번호> 클릭 시 주문상세 팝업이 노출되며, 여기서 데이터를 확인한다. (사은품 세팅도 확인) 또는 \"BOS > 주문/배송 > 주문목록\" 화면에서 몰구분을 \"제휴몰\"로 선택 후 조회해서 확인한다.","CS, 기획운영팀, 패션개발팀","2021-07-27","오후 3시~","성공"]
["FT_05_005","샵링커-송장전송\n(출고 테스트 시, 진행)","1. \"BOS > 영업망관리 > 샵링커 > 송장전송관리\" 화면에서 <송장전송> 버튼 클릭 (사전 준비)","CS, 기획운영팀, 패션개발팀","2021-07-27","오후 3시~","성공"]
[null,null,"    1.1 그 시점의 제휴몰주문 건중 배송중이면서 송장전송이 안 된 데이터가 발송된다. ","CS, 기획운영팀, 패션개발팀","2021-07-27","오후 3시~","성공"]
[null,null,"    1.2. 실패건 전송이력 데이터로 확인 (주문수집 데이터는 운영 데이터이며, 개발 계정의 주문데이터가 없기 때문임. 전송실패 로그로만 확인 가능)","CS, 기획운영팀, 패션개발팀","2021-07-27","오후 3시~","성공"]